[Event "*** Titled Tuesday Blitz"]
[Site "Chess.com"]
[Date "2018.01.02"]
[Round "3"]
[White "DiogenesSinopeus"]
[Black "gmjlh"]
[Result "0-1"]
[WhiteElo "2410"]
[BlackElo "2591"]
[TimeControl "180+2"]
[EndTime "13:34:40 PST"]
[Termination "gmjlh won by resignation"]

1. d4 {[%clk 0:03:01.9]} 1... d5 {[%clk 0:02:59.5]} 2. c4 {[%clk 0:03:03.1]}
2... e6 {[%clk 0:03:00.4]} 3. Nc3 {[%clk 0:03:03.7]} 3... Nf6 {[%clk 0:03:01]}
4. cxd5 {[%clk 0:03:04.7]} 4... exd5 {[%clk 0:03:02.9]} 5. Bg5 {[%clk 0:03:06]}
5... c6 {[%clk 0:03:03.9]} 6. e3 {[%clk 0:03:06.9]} 6... Be7 {[%clk 0:03:05.2]}
7. Bd3 {[%clk 0:03:08.3]} 7... Nbd7 {[%clk 0:03:03.3]} 8. Qc2 {[%clk 0:03:09.3]}
8... Nh5 {[%clk 0:03:00.9]} 9. Bxe7 {[%clk 0:03:08.1]} 9... Qxe7 {[%clk
0:03:02.8]} 10. Nge2 {[%clk 0:03:09.4]} 10... g6 {[%clk 0:03:02.4]} 11. O-O
{[%clk 0:03:08.7]} 11... O-O {[%clk 0:03:00.7]} 12. Rab1 {[%clk 0:03:08]} 12...
a5 {[%clk 0:02:49.8]} 13. a3 {[%clk 0:03:05.9]} 13... Ng7 {[%clk 0:02:44.7]} 14.
Rfc1 {[%clk 0:02:57.6]} 14... Nb6 {[%clk 0:02:41.6]} 15. Na4 {[%clk 0:02:52.1]}
15... Nxa4 {[%clk 0:02:39.5]} 16. Qxa4 {[%clk 0:02:53.4]} 16... Bf5 {[%clk
0:02:40.3]} 17. Bxf5 {[%clk 0:02:09.5]} 17... Nxf5 {[%clk 0:02:42.2]} 18. Rc5
{[%clk 0:02:04.6]} 18... Rfe8 {[%clk 0:02:22]} 19. Re1 {[%clk 0:01:25.5]} 19...
Qd8 {[%clk 0:02:14.3]} 20. Qb3 {[%clk 0:01:14.4]} 20... Re7 {[%clk 0:02:10.2]}
21. Nf4 {[%clk 0:01:11.1]} 21... Nxd4 {[%clk 0:02:07.5]} 22. Qd1 {[%clk
0:00:57.7]} 22... Ne6 {[%clk 0:02:06.4]} 23. Nxe6 {[%clk 0:00:56.5]} 23... Rxe6
{[%clk 0:02:08.3]} 24. Qb3 {[%clk 0:00:55.3]} 24... Qe7 {[%clk 0:02:06.6]} 25.
Rd1 {[%clk 0:00:47.2]} 25... Qxc5 {[%clk 0:02:06.4]} 0-1

[Event "*** Titled Tuesday Blitz"]
[Site "Chess.com"]
[Date "2018.01.02"]
[Round "3"]
[White "Vamostodorecto"]
[Black "NTBT_DHS"]
[Result "0-1"]
[WhiteElo "2362"]
[BlackElo "2535"]
[TimeControl "180+2"]
[EndTime "13:34:45 PST"]
[Termination "NTBT_DHS won by resignation"]

1. d4 {[%clk 0:02:59]} 1... Nf6 {[%clk 0:02:59.3]} 2. c4 {[%clk 0:02:59.7]} 2...
g6 {[%clk 0:03:00.4]} 3. Nc3 {[%clk 0:03:00.3]} 3... Bg7 {[%clk 0:03:01.7]} 4.
e4 {[%clk 0:03:01]} 4... d6 {[%clk 0:03:02.7]} 5. Be2 {[%clk 0:03:01.1]} 5...
O-O {[%clk 0:03:04]} 6. Nf3 {[%clk 0:03:02.6]} 6... e5 {[%clk 0:03:00.5]} 7. O-O
{[%clk 0:03:03.4]} 7... Nc6 {[%clk 0:03:01.3]} 8. d5 {[%clk 0:03:04.6]} 8... Ne7
{[%clk 0:03:01.9]} 9. Ne1 {[%clk 0:03:06.3]} 9... Nd7 {[%clk 0:03:02.8]} 10. Be3
{[%clk 0:03:08]} 10... f5 {[%clk 0:03:04.2]} 11. f3 {[%clk 0:03:09.6]} 11... f4
{[%clk 0:03:05.1]} 12. Bf2 {[%clk 0:03:11.2]} 12... g5 {[%clk 0:03:05.9]} 13.
Rc1 {[%clk 0:03:12.6]} 13... Ng6 {[%clk 0:02:58]} 14. c5 {[%clk 0:03:13.7]}
14... dxc5 {[%clk 0:02:57.3]} 15. b4 {[%clk 0:03:13.1]} 15... Nf6 {[%clk
0:02:43]} 16. bxc5 {[%clk 0:03:04.7]} 16... g4 {[%clk 0:02:43.8]} 17. Kh1 {[%clk
0:03:03.1]} 17... g3 {[%clk 0:02:44.2]} 18. Bg1 {[%clk 0:03:03.8]} 18... gxh2
{[%clk 0:02:44.6]} 19. Bf2 {[%clk 0:03:04.3]} 19... Nh5 {[%clk 0:02:45.6]} 20.
d6 {[%clk 0:03:02.5]} 20... c6 {[%clk 0:02:44.9]} 21. Bc4+ {[%clk 0:03:01]}
21... Kh8 {[%clk 0:02:45.8]} 22. Rb1 {[%clk 0:02:54.9]} 22... Rb8 {[%clk
0:02:34.1]} 23. Qa4 {[%clk 0:02:43.3]} 23... a6 {[%clk 0:02:30.7]} 24. Qc2
{[%clk 0:02:17.8]} 24... Bf6 {[%clk 0:02:28.7]} 25. Rb6 {[%clk 0:02:13.9]} 25...
Bh4 {[%clk 0:02:25.2]} 26. Kxh2 {[%clk 0:02:01]} 26... Bg3+ {[%clk 0:02:22.3]}
27. Bxg3 {[%clk 0:01:22.9]} 27... fxg3+ {[%clk 0:02:21.3]} 28. Kg1 {[%clk
0:01:21.7]} 28... Qh4 {[%clk 0:02:23.2]} 29. Rf2 {[%clk 0:01:21.3]} 29... Nhf4
{[%clk 0:02:13]} 0-1

[Event "*** Titled Tuesday Blitz"]
[Site "Chess.com"]
[Date "2018.01.02"]
[Round "3"]
[White "OparinGrigoriy"]
[Black "johnathan113"]
[Result "1-0"]
[WhiteElo "2723"]
[BlackElo "2407"]
[TimeControl "180+2"]
[EndTime "13:34:49 PST"]
[Termination "OparinGrigoriy won by resignation"]

1. e4 {[%clk 0:03:01.9]} 1... c5 {[%clk 0:03:00.1]} 2. Nf3 {[%clk 0:03:03.2]}
2... g6 {[%clk 0:03:01.4]} 3. d4 {[%clk 0:03:03.8]} 3... cxd4 {[%clk 0:03:03.3]}
4. Nxd4 {[%clk 0:03:05.7]} 4... Nc6 {[%clk 0:03:04]} 5. c4 {[%clk 0:03:06.9]}
5... Bg7 {[%clk 0:03:05.3]} 6. Nc2 {[%clk 0:03:08]} 6... Nf6 {[%clk 0:03:06.6]}
7. Nc3 {[%clk 0:03:09.4]} 7... O-O {[%clk 0:03:08.3]} 8. Be2 {[%clk 0:03:11.1]}
8... d6 {[%clk 0:03:07.7]} 9. O-O {[%clk 0:03:12.7]} 9... Be6 {[%clk 0:03:01.7]}
10. Rb1 {[%clk 0:03:13.2]} 10... Rc8 {[%clk 0:02:59.8]} 11. Bd2 {[%clk
0:03:13.5]} 11... Nd7 {[%clk 0:02:56.9]} 12. b3 {[%clk 0:03:13.6]} 12... Nc5
{[%clk 0:02:48.7]} 13. f3 {[%clk 0:03:14.8]} 13... a5 {[%clk 0:02:47.4]} 14. Kh1
{[%clk 0:03:13.3]} 14... f5 {[%clk 0:02:47.2]} 15. exf5 {[%clk 0:03:13.2]} 15...
Bxf5 {[%clk 0:02:49.1]} 16. Rc1 {[%clk 0:03:13.2]} 16... Nd3 {[%clk 0:02:48.6]}
17. Bxd3 {[%clk 0:03:12.3]} 17... Bxd3 {[%clk 0:02:50.5]} 18. Re1 {[%clk
0:03:13.9]} 18... Ne5 {[%clk 0:02:03.7]} 19. Nd5 {[%clk 0:03:10.3]} 19... e6
{[%clk 0:02:02.7]} 20. Nf4 {[%clk 0:03:09.5]} 20... Bf5 {[%clk 0:02:01.5]} 21.
Nd4 {[%clk 0:03:09.8]} 21... Qd7 {[%clk 0:01:57.4]} 22. g4 {[%clk 0:02:55.3]}
22... Nd3 {[%clk 0:01:16]} 23. Nxd3 {[%clk 0:02:54.9]} 23... Bxd3 {[%clk
0:01:17.1]} 24. Nxe6 {[%clk 0:02:55.3]} 24... Bb2 {[%clk 0:01:12]} 25. Nxf8
{[%clk 0:02:52.3]} 25... Rxf8 {[%clk 0:01:13.9]} 26. Bc3 {[%clk 0:02:46.9]}
26... Bxc1 {[%clk 0:01:10.8]} 27. Qxd3 {[%clk 0:02:47.8]} 27... Bf4 {[%clk
0:01:10.1]} 28. Qd5+ {[%clk 0:02:41.8]} 28... Rf7 {[%clk 0:01:11.2]} 29. Kg2
{[%clk 0:02:37.2]} 29... Kf8 {[%clk 0:01:11]} 30. Re4 {[%clk 0:02:36]} 30... g5
{[%clk 0:01:10.8]} 31. Qxa5 {[%clk 0:02:28.8]} 31... h5 {[%clk 0:01:07.6]} 32.
Qa8+ {[%clk 0:02:19.7]} 1-0

[Event "*** Titled Tuesday Blitz"]
[Site "Chess.com"]
[Date "2018.01.02"]
[Round "3"]
[White "PenguinPacks"]
[Black "SabinaFoisor"]
[Result "0-1"]
[WhiteElo "2170"]
[BlackElo "2314"]
[TimeControl "180+2"]
[EndTime "13:35:13 PST"]
[Termination "SabinaFoisor won by resignation"]

1. e4 {[%clk 0:03:01.9]} 1... e5 {[%clk 0:02:58]} 2. Nf3 {[%clk 0:03:02.3]} 2...
Nc6 {[%clk 0:02:57.7]} 3. Bb5 {[%clk 0:03:02.6]} 3... a6 {[%clk 0:02:43.1]} 4.
Ba4 {[%clk 0:03:03.3]} 4... Nf6 {[%clk 0:02:42.6]} 5. O-O {[%clk 0:03:04.3]}
5... Be7 {[%clk 0:02:41.2]} 6. Re1 {[%clk 0:03:01.9]} 6... b5 {[%clk 0:02:41.8]}
7. Bb3 {[%clk 0:02:54.5]} 7... O-O {[%clk 0:02:42.5]} 8. a4 {[%clk 0:02:55.9]}
8... Rb8 {[%clk 0:02:37.7]} 9. d3 {[%clk 0:02:55]} 9... b4 {[%clk 0:02:37]} 10.
Nbd2 {[%clk 0:02:55.8]} 10... d6 {[%clk 0:02:34.8]} 11. a5 {[%clk 0:02:57]}
11... h6 {[%clk 0:02:33]} 12. Nc4 {[%clk 0:02:57.6]} 12... Re8 {[%clk
0:02:31.1]} 13. Ne3 {[%clk 0:02:53.8]} 13... Bf8 {[%clk 0:02:31.8]} 14. Bc4
{[%clk 0:02:54]} 14... Nd4 {[%clk 0:02:28.5]} 15. c3 {[%clk 0:02:53]} 15... bxc3
{[%clk 0:02:23.4]} 16. bxc3 {[%clk 0:02:53.6]} 16... Ne6 {[%clk 0:02:22.7]} 17.
Nf5 {[%clk 0:02:51.6]} 17... Nf4 {[%clk 0:02:21.6]} 18. Bxf4 {[%clk 0:02:46.6]}
18... exf4 {[%clk 0:02:22.2]} 19. N5d4 {[%clk 0:02:44]} 19... Qd7 {[%clk
0:02:12.8]} 20. Qd2 {[%clk 0:02:44.7]} 20... c5 {[%clk 0:02:10.7]} 21. Ne2
{[%clk 0:02:38.9]} 21... g5 {[%clk 0:02:06.9]} 22. h4 {[%clk 0:02:35.9]} 22...
Qg4 {[%clk 0:01:58]} 23. hxg5 {[%clk 0:02:30.4]} 23... hxg5 {[%clk 0:01:59.9]}
24. Rab1 {[%clk 0:02:17.3]} 24... Rxb1 {[%clk 0:01:57]} 25. Rxb1 {[%clk
0:02:19.2]} 25... Qh5 {[%clk 0:01:50.4]} 26. Rb6 {[%clk 0:02:17.6]} 26... Bg4
{[%clk 0:01:44.9]} 27. Nxf4 {[%clk 0:02:13.3]} 27... gxf4 {[%clk 0:01:43]} 28.
Qxf4 {[%clk 0:02:14.5]} 28... Bg7 {[%clk 0:01:34.3]} 29. Rb7 {[%clk 0:01:52.2]}
29... d5 {[%clk 0:01:23]} 30. exd5 {[%clk 0:01:39]} 30... Bxf3 {[%clk
0:01:19.3]} 31. gxf3 {[%clk 0:01:28]} 31... Re1+ {[%clk 0:01:16.9]} 32. Kg2
{[%clk 0:01:29.3]} 32... Qh1+ {[%clk 0:01:17]} 0-1

[Event "*** Titled Tuesday Blitz"]
[Site "Chess.com"]
[Date "2018.01.02"]
[Round "3"]
[White "AljoschaFeuerstack"]
[Black "Alexander_Moskalenko"]
[Result "0-1"]
[WhiteElo "1812"]
[BlackElo "2748"]
[TimeControl "180+2"]
[EndTime "13:35:16 PST"]
[Termination "Alexander_Moskalenko won by resignation"]

1. e4 {[%clk 0:03:01.8]} 1... g6 {[%clk 0:02:58.8]} 2. d4 {[%clk 0:03:01.8]}
2... Bg7 {[%clk 0:02:59.4]} 3. c3 {[%clk 0:03:01.6]} 3... d6 {[%clk 0:03:00.8]}
4. Bd3 {[%clk 0:03:02.6]} 4... Nf6 {[%clk 0:03:00.2]} 5. Nf3 {[%clk 0:03:03.7]}
5... O-O {[%clk 0:03:01.5]} 6. h3 {[%clk 0:03:04.8]} 6... c6 {[%clk 0:03:03]} 7.
O-O {[%clk 0:03:05.7]} 7... Nbd7 {[%clk 0:03:04.7]} 8. Re1 {[%clk 0:03:04.4]}
8... e5 {[%clk 0:03:05.8]} 9. Na3 {[%clk 0:02:58.1]} 9... Qc7 {[%clk 0:03:07.1]}
10. Nc2 {[%clk 0:02:43.3]} 10... Re8 {[%clk 0:03:08.2]} 11. Bd2 {[%clk
0:02:24.6]} 11... b6 {[%clk 0:03:01.4]} 12. a4 {[%clk 0:02:24.1]} 12... a5
{[%clk 0:03:01.5]} 13. b4 {[%clk 0:02:22.3]} 13... Bb7 {[%clk 0:02:47.7]} 14.
Qb1 {[%clk 0:02:13.8]} 14... axb4 {[%clk 0:02:44.6]} 15. cxb4 {[%clk 0:02:02.7]}
15... exd4 {[%clk 0:02:43.8]} 16. Ncxd4 {[%clk 0:01:49.5]} 16... d5 {[%clk
0:02:32.2]} 17. exd5 {[%clk 0:01:13.6]} 17... Rxe1+ {[%clk 0:02:34.1]} 18. Qxe1
{[%clk 0:01:00.9]} 18... Nxd5 {[%clk 0:02:36]} 19. Bc4 {[%clk 0:01:02]} 19...
N7f6 {[%clk 0:02:29.9]} 20. Qb1 {[%clk 0:00:52.4]} 20... Re8 {[%clk 0:02:12.1]}
21. Qb3 {[%clk 0:00:52.8]} 21... Ne4 {[%clk 0:02:11.8]} 22. Re1 {[%clk
0:00:50.8]} 22... Bf8 {[%clk 0:02:03.8]} 23. b5 {[%clk 0:00:50.2]} 23... Nxd2
{[%clk 0:02:04.6]} 24. Qc2 {[%clk 0:00:27.5]} 24... Nxf3+ {[%clk 0:01:53.2]} 0-1

[Event "*** Titled Tuesday Blitz"]
[Site "Chess.com"]
[Date "2018.01.02"]
[Round "3"]
[White "VeraNebolsina"]
[Black "PinguInTheCity"]
[Result "1-0"]
[WhiteElo "2132"]
[BlackElo "2076"]
[TimeControl "180+2"]
[EndTime "13:35:31 PST"]
[Termination "VeraNebolsina won on time"]

1. e4 {[%clk 0:03:01.1]} 1... d6 {[%clk 0:02:57.7]} 2. d4 {[%clk 0:02:30.6]}
2... Nd7 {[%clk 0:02:53.6]} 3. Nc3 {[%clk 0:02:27.2]} 3... e5 {[%clk 0:02:51.3]}
4. Nf3 {[%clk 0:02:25.2]} 4... Ngf6 {[%clk 0:02:51.7]} 5. Be2 {[%clk 0:02:22.8]}
5... Be7 {[%clk 0:02:51.4]} 6. O-O {[%clk 0:02:22.9]} 6... c6 {[%clk 0:02:52.2]}
7. h3 {[%clk 0:02:15.8]} 7... Qc7 {[%clk 0:02:52.6]} 8. Be3 {[%clk 0:02:15.5]}
8... h6 {[%clk 0:02:53.2]} 9. a4 {[%clk 0:02:15.6]} 9... Nf8 {[%clk 0:02:53.9]}
10. d5 {[%clk 0:02:09.2]} 10... g5 {[%clk 0:02:51.6]} 11. dxc6 {[%clk
0:01:59.6]} 11... bxc6 {[%clk 0:02:53.5]} 12. Nh2 {[%clk 0:01:50.2]} 12... Ng6
{[%clk 0:02:29.8]} 13. Ng4 {[%clk 0:01:33.8]} 13... Ng8 {[%clk 0:01:56.7]} 14.
f3 {[%clk 0:01:11.8]} 1-0

[Event "*** Titled Tuesday Blitz"]
[Site "Chess.com"]
[Date "2018.01.02"]
[Round "3"]
[White "Tash_Boy"]
[Black "FairChess_on_YouTube"]
[Result "0-1"]
[WhiteElo "2523"]
[BlackElo "2742"]
[TimeControl "180+2"]
[EndTime "13:35:54 PST"]
[Termination "FairChess_on_YouTube won by resignation"]

1. e4 {[%clk 0:03:01.9]} 1... c5 {[%clk 0:03:01]} 2. Nf3 {[%clk 0:03:01.4]} 2...
e6 {[%clk 0:03:02.5]} 3. d4 {[%clk 0:03:02.8]} 3... cxd4 {[%clk 0:03:04.4]} 4.
Nxd4 {[%clk 0:03:03.6]} 4... Nc6 {[%clk 0:03:05.9]} 5. Nc3 {[%clk 0:03:03]} 5...
a6 {[%clk 0:03:07]} 6. Nxc6 {[%clk 0:03:02.5]} 6... bxc6 {[%clk 0:03:07.6]} 7.
Bd3 {[%clk 0:03:03.9]} 7... d5 {[%clk 0:03:08.8]} 8. O-O {[%clk 0:03:04.6]} 8...
Nf6 {[%clk 0:03:09.9]} 9. Qe2 {[%clk 0:03:03.8]} 9... Be7 {[%clk 0:03:09.7]} 10.
b3 {[%clk 0:02:59.7]} 10... O-O {[%clk 0:03:10.1]} 11. Bb2 {[%clk 0:02:59.9]}
11... Bb7 {[%clk 0:03:11.6]} 12. Rfe1 {[%clk 0:02:48.5]} 12... Re8 {[%clk
0:03:12.2]} 13. Rad1 {[%clk 0:02:47.3]} 13... c5 {[%clk 0:03:09.8]} 14. Qf3
{[%clk 0:02:42.1]} 14... d4 {[%clk 0:03:03]} 15. Nb1 {[%clk 0:02:40.9]} 15...
Nd7 {[%clk 0:02:58.4]} 16. Na3 {[%clk 0:02:35.8]} 16... Ne5 {[%clk 0:02:47.6]}
17. Qe2 {[%clk 0:02:36.2]} 17... Nxd3 {[%clk 0:02:30.3]} 18. cxd3 {[%clk
0:02:36.1]} 18... a5 {[%clk 0:02:31.6]} 19. Rc1 {[%clk 0:02:34.6]} 19... a4
{[%clk 0:02:31.9]} 20. bxa4 {[%clk 0:02:09.9]} 20... Rxa4 {[%clk 0:02:30.9]} 21.
Rc4 {[%clk 0:02:10.6]} 21... Qd7 {[%clk 0:02:25.9]} 22. Rec1 {[%clk 0:02:06.5]}
22... Rea8 {[%clk 0:02:21.9]} 23. Rxa4 {[%clk 0:02:04.8]} 23... Rxa4 {[%clk
0:02:19.5]} 24. Qc2 {[%clk 0:02:02.8]} 24... Ba6 {[%clk 0:02:16.7]} 25. Rb1
{[%clk 0:01:47.7]} 25... Rb4 {[%clk 0:02:00.9]} 26. Bc1 {[%clk 0:01:45]} 26...
Rxb1 {[%clk 0:02:01.7]} 27. Qxb1 {[%clk 0:01:45.2]} 27... Qa4 {[%clk 0:02:02.2]}
28. h3 {[%clk 0:00:50]} 28... Qd1+ {[%clk 0:01:57]} 29. Kh2 {[%clk 0:00:49.8]}
29... Bd6+ {[%clk 0:01:54.1]} 30. g3 {[%clk 0:00:49.4]} 30... Bxd3 {[%clk
0:01:49.9]} 31. Qb6 {[%clk 0:00:27.6]} 31... Bxe4 {[%clk 0:01:48.1]} 0-1

[Event "*** Titled Tuesday Blitz"]
[Site "Chess.com"]
[Date "2018.01.02"]
[Round "3"]
[White "TheBigBoss04"]
[Black "Firebullet"]
[Result "0-1"]
[WhiteElo "2482"]
[BlackElo "2455"]
[TimeControl "180+2"]
[EndTime "13:36:16 PST"]
[Termination "Firebullet won by resignation"]

1. Nf3 {[%clk 0:03:01.9]} 1... Nf6 {[%clk 0:03:00.4]} 2. g3 {[%clk 0:03:01.9]}
2... g6 {[%clk 0:03:01]} 3. Bg2 {[%clk 0:03:03.3]} 3... Bg7 {[%clk 0:03:02.4]}
4. O-O {[%clk 0:03:04.8]} 4... O-O {[%clk 0:03:02.8]} 5. c4 {[%clk 0:03:06.2]}
5... c6 {[%clk 0:03:00.7]} 6. Nc3 {[%clk 0:03:03.8]} 6... d5 {[%clk 0:03:01.8]}
7. cxd5 {[%clk 0:03:05.7]} 7... cxd5 {[%clk 0:03:02.7]} 8. d4 {[%clk 0:03:06.6]}
8... Nc6 {[%clk 0:03:03.6]} 9. Bf4 {[%clk 0:03:01]} 9... Bg4 {[%clk 0:03:03]}
10. Ne5 {[%clk 0:02:56.1]} 10... Bf5 {[%clk 0:03:03.2]} 11. Qa4 {[%clk
0:02:51.8]} 11... Qb6 {[%clk 0:02:50.7]} 12. Nxd5 {[%clk 0:02:20.5]} 12... Nxd5
{[%clk 0:02:47.9]} 13. Bxd5 {[%clk 0:02:22]} 13... Nxd4 {[%clk 0:02:48.8]} 14.
e3 {[%clk 0:02:12.5]} 14... Ne2+ {[%clk 0:02:48.2]} 15. Kh1 {[%clk 0:02:14]}
15... Nxf4 {[%clk 0:02:48.3]} 16. exf4 {[%clk 0:02:15.5]} 16... Qxb2 {[%clk
0:02:35.5]} 17. Rae1 {[%clk 0:01:34.8]} 17... Rad8 {[%clk 0:02:28.7]} 18. Bg2
{[%clk 0:01:35.1]} 18... a6 {[%clk 0:02:18.6]} 19. g4 {[%clk 0:01:29.9]} 19...
Be6 {[%clk 0:02:17.3]} 20. Rb1 {[%clk 0:01:08.4]} 20... Qd4 {[%clk 0:02:06.2]}
21. Rb4 {[%clk 0:01:07.4]} 21... Qd2 {[%clk 0:02:04.8]} 22. Rxb7 {[%clk
0:00:59.9]} 22... Bxe5 {[%clk 0:01:55.5]} 23. fxe5 {[%clk 0:00:59.8]} 23... Rd4
{[%clk 0:01:56.3]} 24. Qxa6 {[%clk 0:00:57.3]} 24... Rxg4 {[%clk 0:01:56.8]} 25.
Rb5 {[%clk 0:00:22]} 25... Bc4 {[%clk 0:01:51.8]} 26. Qa5 {[%clk 0:00:21.5]}
26... Qxa5 {[%clk 0:01:42.6]} 27. Rxa5 {[%clk 0:00:23.4]} 27... Bxf1 {[%clk
0:01:43.4]} 28. Bxf1 {[%clk 0:00:23.7]} 28... Rd8 {[%clk 0:01:33.8]} 29. e6
{[%clk 0:00:12.6]} 29... Rd1 {[%clk 0:01:32.8]} 0-1

[Event "*** Titled Tuesday Blitz"]
[Site "Chess.com"]
[Date "2018.01.02"]
[Round "3"]
[White "Colombiano07"]
[Black "aa175"]
[Result "1-0"]
[WhiteElo "2196"]
[BlackElo "1902"]
[TimeControl "180+2"]
[EndTime "13:36:21 PST"]
[Termination "Colombiano07 won by checkmate"]

1. e4 {[%clk 0:03:01.9]} 1... e5 {[%clk 0:02:59.9]} 2. Nf3 {[%clk 0:03:02.4]}
2... Nc6 {[%clk 0:02:58.8]} 3. g3 {[%clk 0:03:03.3]} 3... Nf6 {[%clk 0:02:53.4]}
4. d3 {[%clk 0:03:01.7]} 4... d5 {[%clk 0:02:49]} 5. Nbd2 {[%clk 0:03:01.7]}
5... Bc5 {[%clk 0:02:44.9]} 6. Bg2 {[%clk 0:03:02.4]} 6... dxe4 {[%clk
0:02:42.8]} 7. dxe4 {[%clk 0:03:03.3]} 7... O-O {[%clk 0:02:41.8]} 8. O-O {[%clk
0:03:03.7]} 8... Be7 {[%clk 0:02:41]} 9. Qe2 {[%clk 0:03:01.4]} 9... Re8 {[%clk
0:02:39.7]} 10. h3 {[%clk 0:03:01.3]} 10... Be6 {[%clk 0:02:35]} 11. c3 {[%clk
0:03:02.1]} 11... Bf8 {[%clk 0:02:22.5]} 12. Nc4 {[%clk 0:03:01.2]} 12... h6
{[%clk 0:02:16.6]} 13. Rd1 {[%clk 0:03:00.3]} 13... Bd7 {[%clk 0:02:12.3]} 14.
b4 {[%clk 0:02:55.7]} 14... a6 {[%clk 0:02:05.2]} 15. a4 {[%clk 0:02:55.6]}
15... b5 {[%clk 0:02:03.1]} 16. axb5 {[%clk 0:02:54.7]} 16... axb5 {[%clk
0:02:05]} 17. Rxa8 {[%clk 0:02:55.3]} 17... Qxa8 {[%clk 0:02:06.9]} 18. Ne3
{[%clk 0:02:48]} 18... Qb7 {[%clk 0:01:56.3]} 19. Nd5 {[%clk 0:02:47.3]} 19...
Qc8 {[%clk 0:01:46]} 20. Bxh6 {[%clk 0:02:36.9]} 20... Bxh3 {[%clk 0:01:41.1]}
21. Nxf6+ {[%clk 0:02:20.9]} 21... gxf6 {[%clk 0:01:38.1]} 22. Bxf8 {[%clk
0:02:22.8]} 22... Bxg2 {[%clk 0:01:31.7]} 23. Bh6 {[%clk 0:02:10]} 23... Qh3
{[%clk 0:01:27.4]} 24. Nh2 {[%clk 0:02:09.7]} 24... Qxh6 {[%clk 0:01:15.6]} 25.
Kxg2 {[%clk 0:02:10]} 25... Qg6 {[%clk 0:01:11]} 26. Nf3 {[%clk 0:02:01.4]}
26... Rb8 {[%clk 0:00:46.1]} 27. Nh4 {[%clk 0:02:01.7]} 27... Qh7 {[%clk
0:00:29.4]} 28. Nf5 {[%clk 0:01:58.8]} 28... Rd8 {[%clk 0:00:19]} 29. Rh1 {[%clk
0:01:57.7]} 29... Qg6 {[%clk 0:00:16.8]} 30. Qxb5 {[%clk 0:01:56.2]} 30... Nb8
{[%clk 0:00:09.6]} 31. Ne7+ {[%clk 0:01:55.2]} 31... Kg7 {[%clk 0:00:10.6]} 32.
Nxg6 {[%clk 0:01:55.9]} 32... fxg6 {[%clk 0:00:12.5]} 33. Qb7 {[%clk 0:01:52.5]}
33... Rd6 {[%clk 0:00:04.2]} 34. Qxc7+ {[%clk 0:01:53.3]} 34... Rd7 {[%clk
0:00:05.2]} 35. Qxb8 {[%clk 0:01:54.5]} 35... Rb7 {[%clk 0:00:02.1]} 36. Qxb7+
{[%clk 0:01:55.5]} 36... Kg8 {[%clk 0:00:04]} 37. Ra1 {[%clk 0:01:55.5]} 37...
Kf8 {[%clk 0:00:02.2]} 38. Ra8# {[%clk 0:01:57.4]} 1-0

[Event "*** Titled Tuesday Blitz"]
[Site "Chess.com"]
[Date "2018.01.02"]
[Round "3"]
[White "Boryboy"]
[Black "Robin-Side"]
[Result "1-0"]
[WhiteElo "2425"]
[BlackElo "2566"]
[TimeControl "180+2"]
[EndTime "13:36:26 PST"]
[Termination "Boryboy won by resignation"]

1. e4 {[%clk 0:03:01.9]} 1... g6 {[%clk 0:02:59.4]} 2. g3 {[%clk 0:02:57.8]}
2... Bg7 {[%clk 0:02:59.2]} 3. Bg2 {[%clk 0:02:39.2]} 3... e6 {[%clk 0:02:56.8]}
4. Ne2 {[%clk 0:02:38.8]} 4... Ne7 {[%clk 0:02:58.1]} 5. d3 {[%clk 0:02:39.3]}
5... O-O {[%clk 0:02:59.4]} 6. Nd2 {[%clk 0:02:40.7]} 6... d5 {[%clk 0:03:00.8]}
7. O-O {[%clk 0:02:41.3]} 7... c5 {[%clk 0:03:01.8]} 8. h3 {[%clk 0:02:38.6]}
8... Nbc6 {[%clk 0:03:02.1]} 9. c3 {[%clk 0:02:30.2]} 9... b6 {[%clk 0:03:00.7]}
10. Nf3 {[%clk 0:02:25.5]} 10... Bb7 {[%clk 0:03:01]} 11. Qc2 {[%clk 0:02:26.3]}
11... h6 {[%clk 0:02:57.2]} 12. Rd1 {[%clk 0:02:23.9]} 12... f5 {[%clk
0:02:51.9]} 13. exd5 {[%clk 0:02:23.7]} 13... exd5 {[%clk 0:02:52.5]} 14. d4
{[%clk 0:02:24.4]} 14... c4 {[%clk 0:02:50.3]} 15. Nf4 {[%clk 0:02:25.3]} 15...
Qd7 {[%clk 0:02:45.3]} 16. Re1 {[%clk 0:02:26.6]} 16... Rfe8 {[%clk 0:02:39.6]}
17. h4 {[%clk 0:02:27.5]} 17... Bf6 {[%clk 0:02:08.3]} 18. Bh3 {[%clk
0:02:24.4]} 18... Kf7 {[%clk 0:01:57.8]} 19. Re6 {[%clk 0:02:22.9]} 19... g5
{[%clk 0:01:39.8]} 20. hxg5 {[%clk 0:02:16.1]} 20... hxg5 {[%clk 0:01:41.7]} 21.
Rxf6+ {[%clk 0:02:13.2]} 21... Kxf6 {[%clk 0:01:43.5]} 22. Nh5+ {[%clk
0:02:14.3]} 22... Kg6 {[%clk 0:01:33.6]} 23. g4 {[%clk 0:01:58.2]} 23... Rg8
{[%clk 0:00:47.3]} 24. Bxg5 {[%clk 0:01:55.2]} 24... Raf8 {[%clk 0:00:45.1]} 25.
Re1 {[%clk 0:01:55.6]} 25... Kh7 {[%clk 0:00:40.5]} 26. Nf6+ {[%clk 0:01:53.3]}
26... Rxf6 {[%clk 0:00:41.5]} 27. Bxf6 {[%clk 0:01:55.2]} 27... Rg6 {[%clk
0:00:36.7]} 28. g5 {[%clk 0:01:53.3]} 28... Bc8 {[%clk 0:00:34.6]} 29. Nh4
{[%clk 0:01:43.7]} 29... Ng8 {[%clk 0:00:30.8]} 30. Bxf5 {[%clk 0:01:40.5]}
30... Qxf5 {[%clk 0:00:22.4]} 31. Nxf5 {[%clk 0:01:38.8]} 31... Nxf6 {[%clk
0:00:23.7]} 32. Nh4 {[%clk 0:01:37.8]} 32... Ne4 {[%clk 0:00:22.5]} 33. Nxg6
{[%clk 0:01:38.8]} 33... Kxg6 {[%clk 0:00:24.4]} 34. Rxe4 {[%clk 0:01:40.1]}
34... dxe4 {[%clk 0:00:25.2]} 35. Qxe4+ {[%clk 0:01:42]} 35... Bf5 {[%clk
0:00:24.6]} 36. Qxc6+ {[%clk 0:01:43.2]} 36... Kxg5 {[%clk 0:00:26.4]} 37. Qxc4
{[%clk 0:01:43.5]} 1-0